Cogmind - Beta 14 @@@ ROGUE MODE // 2024.10.07 @ 23:46:49 Player: whitenitro0 Result: Destroyed by H-66 Slayer with Gauss Rifle Performance ------------- Evolutions (4) 2000 Regions Visited (11) 2200 Robots Destroyed (232) 1160 Value Destroyed (5869) 5869 Prototype IDs (20) 400 Alien Tech Used (0) 0 Bonus (848) 848 TOTAL SCORE: 12477 Bonus ------- High Alert Combat Kills 193 Follower Combat Kills 871 Registered with UFD 300 Friendly Fire -516 Cogmind --------- Core Integrity 0/850 Matter 151/300 Energy 99/100 System Corruption 2% Temperature Cool (0) Movement Core (50) Location -6/Factory Parts ------- > --- POWER (2) -------- (None) > --- PROPULSION (4) --- (None) > --- UTILITY (7) ------ Advanced Signal Interpreter Improved Target Analyzer > --- WEAPON (2) ------- (None) > --- INVENTORY (5) ---- Micro Nuclear Core Improved Medium Treads High-capacity Matter Pod (200) Enhanced Autogun Ripper Peak State ------------ > --- POWER ------------ Cooled Ion Engine Light Fission Core > --- PROPULSION ------- Light Treads Armored Treads Advanced Treads Improved Medium Treads > --- UTILITY ---------- Advanced Heat Sink High-capacity Storage Unit Advanced Targeting Computer Improved Target Analyzer Layered Light Armor Plating Graphene Brace Hacking Suite > --- WEAPON ----------- Advanced Beam Rifle Advanced Beam Rifle > --- INVENTORY -------- Micro Nuclear Core Light Fission Core Armored Treads Armored Treads Improved Cooling System High-capacity Matter Pod Splice Drone Bay Heavy Plasma Cannon Enhanced Autogun Enhanced Autogun Enhanced Autogun EMP Blaster Advanced EMP Blaster Rocket Launcher Improved Datajack Ripper DRS Beacon Botcube [Rating: 63] Favorites ----------- Power Heavy Ion Engine Engine Heavy Ion Engine Power Core Light Nuclear Core Propulsion Light Treads Treads Light Treads Flight Unit Improved VTOL Module Utility High-capacity Storage Unit Device Improved Heat Sink Storage High-capacity Storage Unit Processor Advanced Targeting Computer Hackware Hacking Suite Protection Hardened Medium Armor Plating Weapon Advanced Beam Rifle Energy Gun Advanced Beam Rifle Energy Cannon Light EM Pulse Cannon Ballistic Gun Enhanced Autogun Ballistic Cannon Improved Light Cannon Launcher Grenade Launcher Special Weapon CPS Tube Slashing Weapon Ripper Special Melee Weapon Improved Datajack Build | -11 -10 -10 -9 -9 -9 -8 -8 -8 -8 -8 -6 ------- Run | Yrd Mat Min Mat Min Exi Min Mat Sto Rec Scr Fac Slots Evolved 8 | . . . 2 . . . 2 . . . 4 Power 1 | . . . . . . . . . . . 1 Propulsion 2 | . . . 1 . . . . . . . 1 Utility 5 | . . . 1 . . . 2 . . . 2 Weapon . | . . . . . . . . . . . . Parts Attached 272 | 7 15 7 44 6 1 6 68 39 20 15 44 Power 19 | 1 2 2 5 . . . 5 1 . . 3 Engine 12 | 1 2 2 3 . . . 2 1 . . 1 Core 7 | . . . 2 . . . 3 . . . 2 Reactor . | . . . . . . . . . . . . Propulsion 63 | 2 2 2 10 1 . . 21 11 3 7 4 Treads 62 | 2 2 2 10 1 . . 20 11 3 7 4 Leg . | . . . . . . . . . . . . Wheel . | . . . . . . . . . . . . Hover . | . . . . . . . . . . . . Flight 1 | . . . . . . . 1 . . . . Utility 78 | 2 6 . 10 1 1 2 25 7 3 5 16 Device 39 | 1 2 . 7 1 . 1 11 3 1 3 9 Storage 6 | 1 2 . 1 . 1 . 1 . . . . Processor 6 | . . . . . . . . 1 . . 5 Hackware 3 | . . . . . . . 2 1 . . . Protection 24 | . 2 . 2 . . 1 11 2 2 2 2 Artifact . | . . . . . . . . . . . . Weapon 112 | 2 5 3 19 4 . 4 17 20 14 3 21 Energy Gun 42 | 1 . . 12 2 . 2 7 7 5 . 6 Energy Cannon 17 | . 2 1 3 . . 1 4 4 . . 2 Ballistic Gun 17 | 1 . . . . . . 5 5 1 . 5 Ballistic Cannon 4 | . 3 . . . . . . . . . 1 Launcher 17 | . . 2 1 2 . 1 1 3 1 . 6 Special Weapon 1 | . . . . . . . . . . 1 . Impact Weapon . | . . . . . . . . . . . . Slashing Weapon 5 | . . . 1 . . . . . 1 2 1 Piercing Weapon . | . . . . . . . . . . . . Special Melee Weapon 9 | . . . 2 . . . . 1 6 . . Unidentified Prototypes 9 | . . . 3 1 . . 3 1 . . 1 Corrupted Parts 2 | . . 2 . . . . . . . . . System Corruption 12 | . . 12 . . . . . . . . . Parts Lost 28 | . . 2 2 . . . 8 1 . . 15 Power 8 | . . 1 . . . . 3 . . . 4 Propulsion 7 | . . . 1 . . . 1 . . . 5 Utility 8 | . . . 1 . . . 3 1 . . 3 Weapon 5 | . . 1 . . . . 1 . . . 3 Highest Loss Streak 11 | . . 2 1 . . . 4 1 . . 11 To Critical Strikes . | . . . . . . . . . . . . Average Slot Usage (%) 99 | . 98 96 99 100 100 100 98 99 99 100 94 Engine 7 | . 14 13 5 . . . 5 9 9 9 10 Core 2 | . . . 5 11 11 11 3 . . . 1 Treads 28 | . 27 28 32 33 33 33 26 27 27 27 24 Device 13 | . 2 14 18 18 22 15 19 10 9 9 12 Storage 9 | . 14 14 11 11 11 11 8 9 9 9 5 Processor 4 | . . . . . . . . 6 9 9 12 Hackware 5 | . . . . . . . 5 10 9 9 5 Protection 7 | . 11 . 3 3 . 6 11 9 9 8 5 Energy Gun 10 | . 4 . 20 21 22 21 11 10 12 . 5 Energy Cannon 2 | . 5 24 . . . . . 2 . . . Ballistic Gun 2 | . 4 . . . . . 5 4 3 . 3 Slashing Weapon 1 | . . . . . . . . . . 9 1 Special Melee Weapon 1 | . . . . . . . . . 1 9 . Peak Build Rating 63 | 9 11 11 23 28 28 28 37 38 37 41 63 Average Rating 30 | 5 9 10 17 26 28 25 31 36 36 39 56 On Entrance 23 | . 9 11 11 23 28 28 24 36 36 36 41 Naked Turns 12 | . . . . . . . . . . . 12 Heaviest Build 76 | 12 34 34 60 61 59 59 71 71 65 61 76 Greatest Support 92 | 40 40 40 60 60 60 60 60 60 60 72 92 Greatest Overweight (x) 1 | . . . . 1 . . 1 1 1 1 1 Average Overweight (x) . | . . . . . . . . . . . . Largest Inventory Capacity 20 | 8 15 15 20 20 20 20 20 20 20 20 20 Average Capacity 18 | 6 9 15 19 20 20 20 19 20 20 20 19 Most Carried 20 | 2 15 15 20 20 20 20 20 20 20 20 20 Average Carried 18 | 1 8 14 18 20 20 20 19 19 20 19 18 Final Capacity 20 | 8 15 15 20 20 20 20 20 20 20 20 5 Final Carried 20 | 2 15 14 20 20 20 20 20 20 20 20 5 Class Distribution -------------------- 44% | Mutant 31% | Commander-Mutant 22% | Scavenger-Mutant Dominant Class ---------------- Mutant | -10/Materials Mutant | -10/Mines Scavenger-Mutant | -9/Materials Mutant | -9/Mines Mutant | -9/Exiles Mutant | -8/Mines Scavenger-Mutant | -8/Materials Commander-Mutant | -8/Storage Mutant | -8/Recycling Commander-Mutant | -8/Scraptown Mutant | -6/Factory Resources | -11 -10 -10 -9 -9 -9 -8 -8 -8 -8 -8 -6 ----------- Run | Yrd Mat Min Mat Min Exi Min Mat Sto Rec Scr Fac Matter Collected 4421 | 279 396 107 657 123 . 81 1048 804 235 196 495 Remotely . | . . . . . . . . . . . . Salvage Created 10016 | 127 385 262 1688 230 . 204 2481 1960 1042 . 1637 Parts 475 | 9 21 11 93 16 . 22 108 90 27 . 78 Haulers Intercepted 18 | . 1 . 5 . . . 5 6 . . 1 Recyclers Shooed 17 | . . . 1 1 . . 6 2 3 . 4 Parts Field Recycled . | . . . . . . . . . . . . Retrieved Matter . | . . . . . . . . . . . . Parts Self-Destructed . | . . . . . . . . . . . . Prevented . | . . . . . . . . . . . . Kills | -11 -10 -10 -9 -9 -9 -8 -8 -8 -8 -8 -6 ------- Run | Yrd Mat Min Mat Min Exi Min Mat Sto Rec Scr Fac Combat Hostiles Destroyed 149 | . 11 18 27 8 . 5 35 24 2 . 19 Guns 84 | . 4 . 19 2 . 3 30 17 2 . 7 Cannons 8 | . 7 1 . . . . . . . . . AOE 48 | . . 16 4 6 . 2 3 7 . . 10 Classes Destroyed 19 | 2 6 2 3 . . 1 3 . . . 2 Worker 17 | . . . 4 1 . 3 1 4 . . 4 Builder 5 | . 1 . 1 . . . . 1 . . 2 Tunneler 7 | 2 . 1 1 . . 2 1 . . . . Hauler 18 | . 1 . 5 . . . 5 6 . . 1 Recycler 30 | 1 . 1 3 1 . . 7 6 9 . 2 Operator 5 | . 1 . . . . . 1 3 . . . Watcher 15 | . 3 . 5 . . . 3 1 . . 3 Swarmer 34 | . 3 . 7 6 . 3 3 8 . . 4 Saboteur 1 | . . . . . . . . . . . 1 Grunt 44 | . 8 1 9 2 . . 16 7 . . 1 Brawler 1 | . . . . . . . 1 . . . . Duelist 6 | . . . 2 . . . 3 . . . 1 Sentry 31 | . . . 9 . . . 9 9 2 . 2 Demolisher 2 | . . 2 . . . . . . . . . Specialist 6 | . . . . . . . 2 . . . 4 Hunter 5 | . . . . . . 2 . . . . 3 Programmer 2 | . . . . . . . . . . . 2 Heavy 3 | . . . . . . . 1 . . . 2 Assembled 16 | . . 16 . . . . . . . . . Best Kill Streak 16 | 2 3 16 6 3 . 3 6 6 5 . 5 Combat Bots Only 16 | . 3 16 4 3 . 2 4 6 1 . 4 Max Kills in Single Turn 5 | 1 1 4 4 3 . 3 1 5 1 . 3 Gunslinging . | . . . . . . . . . . . . Exploded 4 | . . 4 3 3 . 2 1 4 . . 2 Melee . | . . . . . . . . . . . . Uniques/NPCs Destroyed . | . . . . . . . . . . . . Combat | -11 -10 -10 -9 -9 -9 -8 -8 -8 -8 -8 -6 -------- Run | Yrd Mat Min Mat Min Exi Min Mat Sto Rec Scr Fac Hostile Shots Fired 863 | . 83 17 91 7 . 26 204 76 19 . 340 Missed 278 | . 23 4 23 4 . 6 60 26 3 . 129 Damage Taken 9254 | . 626 501 859 36 . 230 2549 593 236 . 3624 Core 1569 | . 123 113 126 . . 84 213 60 . . 850 Absorbed by Shields 175 | . . . . . . . 68 76 . . 31 Redirected to Shielding 52 | . 47 . . . . . 5 . . . . Regen/Repaired (Parts) 1230 | . 305 . 103 . . . 281 417 . . 124 Core Remaining (%) 50 | 100 . 5 . . . 47 . . . 50 . Volleys Fired 689 | 9 68 17 120 14 . 19 213 117 25 . 87 Largest 2 | 2 2 2 2 2 . 2 2 2 2 . 2 Hottest 136 | 70 112 112 122 122 . 122 122 136 122 . 122 Shots Fired 1267 | 18 128 26 232 25 . 34 388 211 49 . 156 Gun 1100 | 18 67 . 224 22 . 30 354 194 49 . 142 Cannon 138 | . 61 20 6 . . 3 33 14 . . 1 Launcher 29 | . . 6 2 3 . 1 1 3 . . 13 Special . | . . . . . . . . . . . . Kinetic 312 | 9 92 . . . . . 76 85 4 . 46 Thermal 902 | 9 32 . 230 22 . 33 311 123 45 . 97 Explosive 21 | . . 6 2 3 . 1 1 3 . . 5 Electromagnetic 32 | . 4 20 . . . . . . . . 8 Robot Hit Streak 25 | 2 12 5 18 4 . 10 17 25 9 . 20 Robot Miss Streak 6 | 3 6 1 5 3 . 2 5 6 2 . 4 Penetration Max . | . . . . . . . . . . . . Secondary Targets 11 | . 1 . 4 . . . 5 . . . 1 Max Gunslinging Chain 1 | . 1 . 1 . . . 1 . . . 1 Shots Hit Robots 808 | 9 76 15 148 12 . 18 215 130 67 12 106 Core Hits 387 | 4 29 38 64 11 . 12 78 62 14 . 75 Critical Kills 1 | . . . . . . . . 1 . . . Critical Parts Destroyed 2 | . 1 . . . . . 1 . . . . Critical Strikes 48 | . 5 . 15 3 . . 11 3 3 . 8 Burn 44 | . 3 . 15 3 . . 10 2 3 . 8 Destroy 3 | . 1 . . . . . 1 1 . . . Blast 1 | . 1 . . . . . . . . . . Melee Attacks 52 | . . . 7 . . . . . 32 12 1 Impact . | . . . . . . . . . . . . Slashing 6 | . . . 5 . . . . . . . 1 Piercing . | . . . . . . . . . . . . Sneak Attacks 39 | . . . 1 . . . . . 27 11 . Combat Hostiles 10 | . . . . . . . . . 10 . . Follow-up Attacks . | . . . . . . . . . . . . Damage Inflicted 17532 | 90 1155 1305 2566 562 . 495 4376 2861 659 . 3463 Guns 12613 | 90 498 . 2241 260 . 362 4189 2432 659 . 1882 Cannons 952 | . 657 268 . . . . . 27 . . . Explosions 3884 | . . 1037 251 302 . 133 184 396 . . 1581 Melee 74 | . . . 74 . . . . . . . . Ramming 9 | . . . . . . . 3 6 . . . Kinetic 3203 | 52 806 . . . . . 739 1027 71 . 508 Thermal 10068 | 38 301 . 2241 260 . 362 3450 1432 588 . 1396 Explosive 2980 | . . 1037 251 302 . 133 184 396 . . 677 Electromagnetic 1198 | . 48 268 . . . . . . . . 882 Impact . | . . . . . . . . . . . . Slashing 74 | . . . 74 . . . . . . . . Piercing . | . . . . . . . . . . . . Highest Corruption 12 | . . 12 . . . . 2 2 2 2 2 Average Corruption 2 | . . 10 . . . . 2 2 2 1 2 Corruption Purged 2 | . . . . . . . . . . 2 . Corruption Blocked . | . . . . . . . . . . . . Effects 125 | . . . . . . . 40 36 32 17 . Message Errors 27 | . . . . . . . 7 10 7 3 . Matter Fused 24 | . . . . . . . 10 6 5 3 . Heat Flow Errors 11 | . . . . . . . 2 4 4 1 . Energy Discharges 16 | . . . . . . . 4 4 6 2 . Parts Rejected 4 | . . . . . . . 2 . 2 . . Data Loss (minor) 20 | . . . . . . . 6 5 6 3 . Data Loss (major) 9 | . . . . . . . 4 2 . 3 . Misfires 7 | . . . . . . . 2 4 1 . . Alerts 5 | . . . . . . . 2 . 1 2 . Weapon Failures 2 | . . . . . . . 1 1 . . . Overload Shots . | . . . . . . . . . . . . Overflow Damage 84 | . 8 9 35 . . . . 26 . . 6 Projectiles 8 | . 8 . . . . . . . . . . Explosions 42 | . . 9 1 . . . . 26 . . 6 Melee 34 | . . . 34 . . . . . . . . Knockbacks 6 | . 6 . . . . . . . . . . Impact . | . . . . . . . . . . . . Kinetic 6 | . 6 . . . . . . . . . . Secondary . | . . . . . . . . . . . . Self-Inflicted Damage 10 | . . . . . . . . . . . 10 Shots 2 | . . . . . . . . . . . 2 Rammed 3 | . . . . . . . 1 2 . . . Targets Rammed 3 | . . . . . . . 1 2 . . . Kicked . | . . . . . . . . . . . . Crushed . | . . . . . . . . . . . . Highest Temperature 240 | 70 240 63 171 12 . 24 180 226 177 235 114 Average Temperature 42 | 29 71 22 43 5 . 9 40 24 35 121 48 Received Heat Transfer 1755 | . 216 . 402 18 . . 681 234 72 . 132 Siege Activations . | . . . . . . . . . . . . Robots Corrupted 1 | . . 1 . . . . . . . . . Combat Hostiles 1 | . . 1 . . . . . . . . . Parts Fried 4 | . 1 1 . . . . . . . . 2 Impact Corruptions . | . . . . . . . . . . . . Robots Melted 9 | . . . 4 . . . 2 . . . 3 Combat Hostiles 8 | . . . 4 . . . 2 . . . 2 Parts Melted 53 | . 1 . 16 1 . . 17 6 3 . 9 Heat Transferred 24088 | 111 1110 . 6660 703 . 666 7215 3034 1369 . 3220 Parts Sabotaged 4 | . . . . . . . . . . . 4 Parts Stolen . | . . . . . . . . . . . . Parts Stripped . | . . . . . . . . . . . . Power Chain Reactions 1 | . . . . . . . . . . . 1 Alert | -11 -10 -10 -9 -9 -9 -8 -8 -8 -8 -8 -6 ------- Run | Yrd Mat Min Mat Min Exi Min Mat Sto Rec Scr Fac Peak Influence 592 | 15 182 68 509 152 . 190 373 592 185 . 532 Initial 158 | . 9 . 12 55 . . 15 40 158 . . Average 171 | 6 43 17 227 61 . 53 193 338 49 . 287 Maximum Alert Level 2 | . . . 2 . . . 1 2 . . 2 Low Security (%) 62 | 100 100 100 55 100 . 100 59 9 100 . 6 Level 1 29 | . . . 28 . . . 40 59 . . 82 Level 2 8 | . . . 15 . . . . 30 . . 11 Level 3 . | . . . . . . . . . . . . Level 4 . | . . . . . . . . . . . . Level 5 . | . . . . . . . . . . . . High Security . | . . . . . . . . . . . . Max Security . | . . . . . . . . . . . . Squads Dispatched 24 | . 2 . 2 . . . 6 4 . . 10 Investigation 5 | . 1 . 1 . . . 1 2 . . . Extermination 2 | . . . . . . . . . . . 2 Reinforcement 12 | . 1 . 1 . . . 3 2 . . 5 Assault 1 | . . . . . . . . . . . 1 Garrison 4 | . . . . . . . 2 . . . 2 Intercept . | . . . . . . . . . . . . Searches Triggered . | . . . . . . . . . . . . Construction Impeded 1 | . . . . . . . . . . . 1 Haulers Reinforced . | . . . . . . . . . . . . Active Scanning Responses . | . . . . . . . . . . . . Cargo Convoy Interrupts 1 | . . . . . . . . . . . 1 Stealth | -11 -10 -10 -9 -9 -9 -8 -8 -8 -8 -8 -6 --------- Run | Yrd Mat Min Mat Min Exi Min Mat Sto Rec Scr Fac Distress Signals 10 | . 1 . 4 . . . 5 . . . . Communications Jammed . | . . . . . . . . . . . . Distress Signals . | . . . . . . . . . . . . Times Spotted 247 | . 19 23 34 7 . 9 62 41 4 . 48 Peak Tracking Total 15 | . 3 10 4 3 . 4 6 5 1 . 15 Tactical Retreats 9 | . 1 . 1 . . 1 2 3 . . 1 Traps | -11 -10 -10 -9 -9 -9 -8 -8 -8 -8 -8 -6 ------- Run | Yrd Mat Min Mat Min Exi Min Mat Sto Rec Scr Fac Traps Triggered 4 | . . . . . . . 3 1 . . . Indirectly . | . . . . . . . . . . . . Trap Hack Attempts 37 | . . . 37 . . . . . . . . Triggered . | . . . . . . . . . . . . Disarmed . | . . . . . . . . . . . . Reprogrammed 1 | . . . 1 . . . . . . . . Reused . | . . . . . . . . . . . . Traps Extracted . | . . . . . . . . . . . . Installed . | . . . . . . . . . . . . Triggered . | . . . . . . . . . . . . Machines | -11 -10 -10 -9 -9 -9 -8 -8 -8 -8 -8 -6 ---------- Run | Yrd Mat Min Mat Min Exi Min Mat Sto Rec Scr Fac Machines Disabled 15 | . . . 1 . . 1 1 2 . . 10 Max in Single Turn 4 | . . . 1 . . 1 1 1 . . 4 Garrison Access 1 | . . . . . . . 1 . . . . Machines Repaired . | . . . . . . . . . . . . Machines Dismantled . | . . . . . . . . . . . . Machines Sabotaged . | . . . . . . . . . . . . Overloaded Fab Kills . | . . . . . . . . . . . . Hacking | -11 -10 -10 -9 -9 -9 -8 -8 -8 -8 -8 -6 --------- Run | Yrd Mat Min Mat Min Exi Min Mat Sto Rec Scr Fac Machines Accessed 76 | . 11 . 15 1 . . 17 12 12 5 3 Terminals 43 | . 8 . 11 . . . 12 7 4 . 1 Fabricators . | . . . . . . . . . . . . Repair Stations 8 | . 1 . 1 . . . 2 2 . . 2 Recycling Units 12 | . 2 . 1 . . . 1 2 6 . . Scanalyzers 3 | . . . 2 . . . 1 . . . . Garrison Access 2 | . . . . . . . 1 1 . . . Total Hacks 278 | . 36 . 47 1 . . 58 45 56 30 5 Successful 198 | . 22 . 32 1 . . 35 26 50 30 2 Failed 78 | . 13 . 14 . . . 23 19 6 . 3 Catastrophic 11 | . . . 1 . . . 7 3 . . . Database Lockouts 2 | . 1 . 1 . . . . . . . . Manual 98 | . 17 . 20 . . . 27 19 13 . 2 Terminals 137 | . 24 . 38 . . . 38 22 13 . 2 Fabricators . | . . . . . . . . . . . . Repair Stations 34 | . 8 . 2 . . . 8 13 . . 3 Recycling Units 33 | . 4 . 2 . . . 1 7 19 . . Scanalyzers 13 | . . . 5 . . . 8 . . . . Garrison Access 6 | . . . . . . . 3 3 . . . Terminal Hacks 102 | . 8 . 15 1 . . 11 8 29 30 . Record 51 | . . . 1 . . . 1 . 24 25 . Robot Schematic 2 | . 2 . . . . . . . . . . Robot Analysis 8 | . . . 1 . . . 1 1 . 5 . Prototype ID Bank 9 | . 2 . 4 . . . . 2 1 . . Open Door 2 | . . . . 1 . . . 1 . . . Branch Access Points 1 | . . . . . . . 1 . . . . Terminal Index 1 | . 1 . . . . . . . . . . Alert Level 5 | . 1 . 1 . . . 2 . 1 . . Unreport Threat 10 | . 1 . 2 . . . 3 3 1 . . Locate Traps 2 | . . . 1 . . . . 1 . . . Transport Status 1 | . . . 1 . . . . . . . . Hauler Manifests 2 | . . . 1 . . . 1 . . . . Zone Layout 8 | . 1 . 3 . . . 2 . 2 . . Fabricator Hacks . | . . . . . . . . . . . . Repair Station Hacks 27 | . 6 . 2 . . . 5 12 . . 2 Scan Component 15 | . 3 . 1 . . . 3 7 . . 1 Repair 12 | . 3 . 1 . . . 2 5 . . 1 Recycling Unit Hacks 15 | . . . 1 . . . 1 2 11 . . Retrieve Matter 2 | . . . . . . . . . 2 . . Retrieve Components 13 | . . . 1 . . . 1 2 9 . . Scanalyzer 12 | . . . 4 . . . 8 . . . . Insert Component 6 | . . . 2 . . . 4 . . . . Analyze 6 | . . . 2 . . . 4 . . . . Garrison Access Hacks 2 | . . . . . . . 2 . . . . Unlock Access 1 | . . . . . . . 1 . . . . Seal Access 1 | . . . . . . . 1 . . . . Unauthorized Hacks 40 | . 8 . 10 . . . 8 4 10 . . Terminals 28 | . 5 . 9 . . . 8 2 4 . . Assimilate 1 | . . . 1 . . . . . . . . Botnet 13 | . 4 . 3 . . . 3 2 1 . . Skim 14 | . 1 . 5 . . . 5 . 3 . . Fabricators . | . . . . . . . . . . . . Repair Stations . | . . . . . . . . . . . . Recycling Units 12 | . 3 . 1 . . . . 2 6 . . Recyclers 1 | . 1 . . . . . . . . . . Mask 1 | . 1 . . . . . . . . . . Tunnel 10 | . 1 . 1 . . . . 2 6 . . Scanalyzers . | . . . . . . . . . . . . Garrison Access . | . . . . . . . . . . . . Data Cores Recovered 3 | . 1 . . . . . 1 1 . . . Used 2 | . . . . . . . 1 1 . . . Hacking Detections 62 | . 10 . 14 . . . 17 11 7 . 3 Full Trace Events 1 | . . . . . . . 1 . . . . Feedback Events . | . . . . . . . . . . . . Feedback Blocked . | . . . . . . . . . . . . Robot Schematics Acquired 2 | . 2 . . . . . . . . . . Robots Built . | . . . . . . . . . . . . Authchips . | . . . . . . . . . . . . Time . | . . . . . . . . . . . . Total Robot Build Rating . | . . . . . . . . . . . . Part Schematics Acquired 6 | . . . 2 . . . 4 . . . . Parts Built . | . . . . . . . . . . . . Authchips . | . . . . . . . . . . . . Time . | . . . . . . . . . . . . Total Part Build Rating . | . . . . . . . . . . . . Parts Repaired 12 | . 3 . 1 . . . 2 5 . . 1 Time 443 | . 84 . 26 . . . 77 206 . . 50 Parts Recycled . | . . . . . . . . . . . . Recycled Matter . | . . . . . . . . . . . . Retrieved Matter . | . . . . . . . . . . . . Retrieved Components 57 | . . . 1 . . . 9 19 28 . . Parts Scanalyzed 6 | . . . 2 . . . 4 . . . . Part Schematics Acquired 6 | . . . 2 . . . 4 . . . . Parts Damaged . | . . . . . . . . . . . . Bothacking | -11 -10 -10 -9 -9 -9 -8 -8 -8 -8 -8 -6 ------------ Run | Yrd Mat Min Mat Min Exi Min Mat Sto Rec Scr Fac Used RIF Installer . | . . . . . . . . . . . . Robots Hacked 24 | . . . 2 . . . . . 11 11 . Non-combat 6 | . . . 1 . . . . . 3 2 . Combat 18 | . . . 1 . . . . . 8 9 . Robot Hacks Applied 25 | . . . 2 . . . . . 12 11 . parse_system 25 | . . . 2 . . . . . 12 11 . Relay Couplers Released . | . . . . . . . . . . . . Fabnet Peak Effective % . | . . . . . . . . . . . . Robots Rewired 8 | . . . . . . . . . 8 . . Allies Hacked . | . . . . . . . . . . . . Hacks Repelled . | . . . . . . . . . . . . Allies | -11 -10 -10 -9 -9 -9 -8 -8 -8 -8 -8 -6 -------- Run | Yrd Mat Min Mat Min Exi Min Mat Sto Rec Scr Fac Total Allies 25 | . . 5 1 . . . . 10 8 . 1 Largest Group 10 | . . 4 1 . . . . 10 10 10 10 Highest-Rated Group 194 | . . 74 11 . . . . 173 194 194 194 Highest-Rated Ally 34 | . . 31 11 . . . . 29 34 34 34 Total Orders 7 | . . . . 1 2 . . . . 3 1 STAY 2 | . . . . . . . . . . 2 . FOLLOW 1 | . . . . . . . . . . 1 . EXPLORE 2 | . . . . . 1 . . . . . 1 RETURN 2 | . . . . 1 1 . . . . . . Ally Attacks 186 | . . 33 . . . . 4 85 14 . 50 Total Damage 2816 | . . 372 . . . . 16 1091 196 . 1141 Kills 32 | . . 7 . . . . . 13 3 . 9 Allies Corrupted . | . . . . . . . . . . . . Allies Melted . | . . . . . . . . . . . . Intel | -11 -10 -10 -9 -9 -9 -8 -8 -8 -8 -8 -6 ------- Run | Yrd Mat Min Mat Min Exi Min Mat Sto Rec Scr Fac Robot Analysis Total 8 | . . . 1 . . . 1 1 . 5 . Derelict Logs Recovered 2 | . . 1 . 1 . . . . . . . Drone Launches 13 | . . . . 6 1 . 4 . . . 2 Drone Recoveries 9 | . . . . 6 1 . 2 . . . . Exploration | -11 -10 -10 -9 -9 -9 -8 -8 -8 -8 -8 -6 ------------- Run | Yrd Mat Min Mat Min Exi Min Mat Sto Rec Scr Fac Turns Passed 20517 | 115 1341 1024 2447 967 266 903 3776 2702 1959 3864 1153 Spaces Moved 9405 | 50 630 601 1180 557 166 525 1236 1009 736 2192 523 Core 37 | 2 . . . . . . . . . . 35 Treads 9368 | 48 630 601 1180 557 166 525 1236 1009 736 2192 488 Legs . | . . . . . . . . . . . . Wheels . | . . . . . . . . . . . . Hover . | . . . . . . . . . . . . Flight . | . . . . . . . . . . . . Fastest Speed 50 | 50 160 160 160 160 160 160 160 163 166 146 50 Average Speed 184 | 155 160 160 160 161 160 160 233 213 244 171 153 Slowest Speed 246 | 160 160 160 160 240 160 160 246 246 246 246 246 Overloaded Moves . | . . . . . . . . . . . . Propulsion Burnouts . | . . . . . . . . . . . . Robots Hopped . | . . . . . . . . . . . . Cave-ins Triggered . | . . . . . . . . . . . . Exploration Rate (%) 80 | 4 95 98 89 99 86 97 98 96 97 95 16 Regions Visited 11 Branch Regions 7 Pre-discovered Areas 16 | . 1 1 3 1 . . 2 2 6 . . Known Exits Taken 4 | . . . . . . 1 1 . 1 1 . Unknown Exits Taken 7 | 1 1 1 1 1 1 . . 1 . . . Scrap Searched 8 | . . 2 . 1 . 1 . . . 4 . Spaces Dug 87 | . . . 16 8 . 3 25 34 . . 1 Terrain Destroyed 230 | . 2 30 26 16 . 13 81 46 . . 16 Melee 5 | . . . 4 . . . . . . . 1 Projectile 56 | . 2 . 6 . . 3 33 12 . . . AOE 169 | . . 30 16 16 . 10 48 34 . . 15 Terrain Rammed . | . . . . . . . . . . . . Walls Destroyed . | . . . . . . . . . . . . Machines Disabled . | . . . . . . . . . . . . Actions | -11 -10 -10 -9 -9 -9 -8 -8 -8 -8 -8 -6 --------- Run | Yrd Mat Min Mat Min Exi Min Mat Sto Rec Scr Fac Total 11390 | 68 844 636 1515 604 168 552 1773 1377 836 2293 724 Wait 624 | . 98 10 57 22 1 1 164 184 11 50 26 Move 9394 | 49 629 600 1179 556 165 524 1235 1008 735 2191 523 Hop . | . . . . . . . . . . . . Pick Up 128 | 3 20 1 29 2 . 1 42 8 2 9 11 Fast Attach 76 | 6 6 . 4 1 . . 21 3 8 7 20 Attach 41 | 1 2 2 6 . . . 13 6 . 1 10 Detach 3 | . . . 2 . . . 1 . . . . Swap 155 | . 7 5 34 5 1 6 34 30 12 7 14 Drop 173 | . 14 1 40 4 1 1 48 18 11 16 19 Fire 689 | 9 68 17 120 14 . 19 213 117 25 . 87 Melee 52 | . . . 7 . . . . . 32 12 1 Ram . | . . . . . . . . . . . . Kick . | . . . . . . . . . . . . Crush 3 | . . . . . . . 1 2 . . . Escape Stasis 1 | . . . . . . . . 1 . . . Rewire 14 | . . . . . . . 1 . . . 13 Trap 37 | . . . 37 . . . . . . . . Miscellaneous . | . . . . . . . . . . . . Route ------- -11/Scrapyard -10/Materials (discovered 4 exits: *Mat x3 / [*Min]) -10/Mines (discovered 2 exits: *Mat x2) -9/Materials (discovered 5 exits: *Mat x3 / *Min x2) -9/Mines (discovered 3 exits: *Mat x2 / [*Exi]) -9/Exiles (discovered 2 exits: [*Min x2]) -8/Mines (discovered 2 exits: *Mat x2) -8/Materials (discovered 4 exits: [*Fac x3] / *Sto) -8/Storage (discovered 2 exits: [*Fac] / *Rec) -8/Recycling (discovered 2 exits: *Fac / *Scr) -8/Scraptown (discovered 2 exits: *Fac x2) -6/Factory History --------- Turn | Location | Event 6 | -11/Scrapyard | Discovered new exit (range 16) 116 | -11/Scrapyard | Entered Materials 314 | -10/Materials | Build established: Mutant 403 | -10/Materials | Discovered new exit (range 8) 419 | -10/Materials | Discovered new exit (range 15) 644 | -10/Materials | Central database locked down 703 | -10/Materials | Discovered new exit (range 9) 947 | -10/Materials | Repaired Lgt. Treads 974 | -10/Materials | Repaired Lgt. Treads 1008 | -10/Materials | Repaired Imp. Light Cannon 1123 | -10/Materials | Discovered new exit (range 8) 1457 | -10/Materials | Entered Mines 1493 | -10/Mines | Assisted by bots powering up and referring to "LRC-V3" 1619 | -10/Mines | Discovered new exit (range 3) 1711 | -10/Mines | Discovered new exit (range 11) 2109 | -10/Mines | Learned location of Zion (-7) 2162 | -10/Mines | Assembled infested the area 2185 | -10/Mines | Core integrity fell below 50% 2209 | -10/Mines | Destroyed 16 combat bots 2271 | -10/Mines | Core integrity fell below 20% 2479 | -10/Mines | System corruption reached 10% 2481 | -10/Mines | Entered Materials 2481 | -9/Materials | Accompanied by 1 ally 2481 | -9/Materials | Evolved 2 slots: Propulsion x1, Utility x1 2757 | -9/Materials | Discovered new exit (range 6) 3053 | -9/Materials | Build established: Scavenger-Mutant 3423 | -9/Materials | Repaired Lgt. Treads 3592 | -9/Materials | Discovered new exit (range 8) 3619 | -9/Materials | Learned location of 1 exit from Recycling 3723 | -9/Materials | Learned location of 1 exit from Recycling 3760 | -9/Materials | Learned Storage trap positions 3809 | -9/Materials | Learned location of Mines (-8) 3863 | -9/Materials | Discovered new exit (range 6) 3879 | -9/Materials | Identified exit to Materials 4159 | -9/Materials | Central database locked down 4514 | -9/Materials | Build established: Mutant 4928 | -9/Materials | Entered Mines 4935 | -9/Mines | Received a Rocket Launcher from a helpful Derelict 5037 | -9/Mines | A weapon hastily lodged in a ceiling crevice suddenly fell to the ground 5045 | -9/Mines | Discovered exit to Materials (range 10) 5083 | -9/Mines | Joined a pair of Derelicts in attacking an 0b10 outpost 5226 | -9/Mines | Found the Drone Emporium 5235 | -9/Mines | Found Prototype Device 5235 | -9/Mines | Identified Splice Drone Bay 5384 | -9/Mines | Discovered exit to Materials (range 15) 5470 | -9/Mines | Deemed a non-threat by the Exiles lab entrance 5470 | -9/Mines | Discovered new exit (range 5) 5660 | -9/Mines | Learned location of Storage (-8) 5769 | -9/Mines | Learned Materials terminal intel 5895 | -9/Mines | Entered Exiles 5899 | -9/Exiles | Discovered new exit (range 27) 5935 | -9/Exiles | Met 8R-AWN 5948 | -9/Exiles | Discovered new exit (range 96) 5964 | -9/Exiles | Met EX-HEX 6045 | -9/Exiles | Met EX-DEC 6072 | -9/Exiles | Met EX-BIN 6161 | -9/Exiles | Entered Mines 6405 | -8/Mines | Discovered exit to Materials (range 9) 6851 | -8/Mines | Discovered exit to Materials (range 9) 6864 | -8/Mines | Core integrity fell below 50% 7064 | -8/Mines | Entered Materials 7064 | -8/Materials | Evolved 2 slots: Utility x2 7065 | -8/Materials | Identified exit to Storage 7066 | -8/Materials | Loaded intel: 12 terminal locations 7372 | -8/Materials | Build established: Scavenger-Mutant 8029 | -8/Materials | Garrison activated, responded to threat 8143 | -8/Materials | Lost 4 parts (2p2u) 8199 | -8/Materials | Identified exit to Garrison 8369 | -8/Materials | Lost 3 parts (1n1u1w) 8601 | -8/Materials | Repaired Hcp. Storage Unit 8654 | -8/Materials | Repaired Imp. Assault Rifle 8807 | -8/Materials | Discovered new exit (range 6) 9177 | -8/Materials | Learned location of 1 exit from Recycling 9230 | -8/Materials | Discovered new exit (range 9) 9242 | -8/Materials | Learned location of Lower Caves (-7) 9295 | -8/Materials | Learned 2 Storage zone layouts 9339 | -8/Materials | Learned Factory scanalyzer intel 9372 | -8/Materials | Learned Factory security intel 9397 | -8/Materials | Learned 2 Storage zone layouts 9413 | -8/Materials | Learned location of 1 exit from Lower Caves 9439 | -8/Materials | Learned Storage trap positions 9523 | -8/Materials | Learned 4 Factory zone layouts 10240 | -8/Materials | Build established: Mutant 10253 | -8/Materials | Discovered new exit (range 10) 10840 | -8/Materials | Entered Storage 10842 | -8/Storage | Loaded intel: 9 trap records 11263 | -8/Storage | Repaired Hrd. Medium Armor Plating 11651 | -8/Storage | Used back door to open Recycling access 11651 | -8/Storage | Discovered new exit (range 3) 11654 | -8/Storage | Build established: Hacker-Mutant 11783 | -8/Storage | Assisted by bots powering up and referring to "LRC-V3" 11882 | -8/Storage | Discovered new exit (range 16) 12062 | -8/Storage | Build established: Commander-Mutant 12125 | -8/Storage | Repaired Arm. Treads 12164 | -8/Storage | Repaired Arm. Treads 12198 | -8/Storage | Repaired Rocket Launcher 12259 | -8/Storage | Repaired Enh. Autogun 13452 | -8/Storage | Build established: Mutant 13542 | -8/Storage | Entered Recycling 13542 | -8/Recycling | Accompanied by 3 allies 13543 | -8/Recycling | Met a Zionite searching for Scraptown 13543 | -8/Recycling | Identified exit to Factory 13543 | -8/Recycling | Identified exit to Scraptown 14948 | -8/Recycling | Build established: Commander-Mutant 15363 | -8/Recycling | Scanned before Scraplab entrance 15452 | -8/Recycling | Entered Scraplab 15501 | -8/Recycling | Entered Scraptown 15501 | -8/Scraptown | Accompanied by 10 allies 16070 | -8/Scraptown | Heard Great Nut preacher, LISTEN AND RECITE! 16458 | -8/Scraptown | Discovered exit to Factory (range 5) 16563 | -8/Scraptown | Visited Fellowship of the Rings 16617 | -8/Scraptown | Visited Awakened 16684 | -8/Scraptown | Visited UFD Registry 16751 | -8/Scraptown | Visited TADAMA 16789 | -8/Scraptown | Visited Symbiants 17146 | -8/Scraptown | Visited Artisan Demo Area 17307 | -8/Scraptown | Visited Junk Repository 17561 | -8/Scraptown | Registered with UFD as "Smoothshell" 17619 | -8/Scraptown | Visited Chapter 10 17677 | -8/Scraptown | Visited Analyses Database 17735 | -8/Scraptown | Visited Supply Room 17763 | -8/Scraptown | Visited DA-N13 Charitable Foundation 17773 | -8/Scraptown | Found DCF Scrap (31 items) 17833 | -8/Scraptown | Visited Supply Room 17880 | -8/Scraptown | Visited LU-1G1's Boring Crew 18401 | -8/Scraptown | Visited Derelict Rescue Squad 18416 | -8/Scraptown | Found DRS Beacon 18447 | -8/Scraptown | Visited Abandonware Association 18484 | -8/Scraptown | Learned abandonware demo "SHUTEYE.EXE" 18519 | -8/Scraptown | Visited Botcube Research 18531 | -8/Scraptown | Found Botcube 18652 | -8/Scraptown | Visited Curators Association 18718 | -8/Scraptown | Discovered exit to Factory (range 3) 19365 | -8/Scraptown | Entered Factory 19365 | -6/Factory | Accompanied by 10 allies 19365 | -6/Factory | Evolved 4 slots: Power x1, Propulsion x1, Utility x2 19368 | -6/Factory | Loaded intel: 4 scanalyzer locations 19743 | -6/Factory | Lost 3 allies 20080 | -6/Factory | Build established: Mutant 20158 | -6/Factory | Lost 4 parts (1p1n1u1w) 20326 | -6/Factory | Repaired Imp. Medium Treads 20388 | -6/Factory | Garrison activated, responded to threat 20415 | -6/Factory | First assault squad dispatched 20457 | -6/Factory | Cargo convoy interrupted 20476 | -6/Factory | Released all parts (5) 20479 | -6/Factory | Core integrity fell below 50% 20481 | -6/Factory | Botcube activated 20499 | -6/Factory | Core integrity fell below 20% 20507 | -6/Factory | Lost 11 parts (3p4n2u2w) 20518 | -6/Factory | Destroyed by H-66 Slayer with Gauss Rifle Last Messages --------------- 20509_ Attempting to rewire Drone. 20509_ Drone cannot be rewired. 20510_ Attempting to rewire Drone. 20510_ Drone cannot be rewired. 20511_ Attempting to rewire Drone. 20511_ Drone cannot be rewired. 20511_ H-66 Slayer IFF system glitched. 20512_ Attempting to rewire Drone. 20512_ Drone cannot be rewired. 20513_ Attempting to rewire Drone. 20513_ Drone cannot be rewired. 20514_ Attempting to rewire Drone. 20514_ Drone cannot be rewired. 20515_ Attempting to rewire Drone. 20515_ Drone cannot be rewired. 20516_ Penetrated by Slug. 20516_ Drone destroyed. 20516_ Acquired 11 matter. 20516_ Slug penetrates Wall. 20518_ Penetrated by Slug. Map ----- +----------------------------------------------------+ | | | | | | | | | | | | | | | | | | | | | | | | | | | | | | | | | | | | | ????????????????????????###########??????????????? | | ????????????????????????# ! #??????????????? | | ????????????????????????# ] !!!#??????????????? | | ????????????????????????# ! !!!#??????????????? | | ???????????????########## !!!#??????????????? | | ???????????????#* ###;#######??????????????? | | ???????????????# !!! # #????????????????????? | | ???????????????# !! ! /@ #????????????????????? | | ???????????????# ! # #????????????????????? | | ????+??????????# #! %#????????????????????? | | ????# ?????????# = #hh #????????????????????? | | ????# ????????# [#* #????????????????????? | | ?"??# ???????# !%# [ #????????????????????? | | R" # #?##???# ! |*+=%!#????????????????????? | | """ ##/############# [ #????????????????????? | | * ![]!][######### ##???????????????????? | | ?# [=!& #???????????????????? | | [=[[ #???????????????????? | | !% ""#???????????????????? | | % =|! % Y"#???????????????????? | | /! /%%%%""" ""#???????????????????? | | " !*%! ==%%" """ #???????????????????? | | " %% ![! % =%%%%% """ #???????????????????? | | "" ## =%= % !*[ #???????????????????? | | ??# %% ! = """ ??????????????? | | #???# %%% %%% [ """ ??????????????????? | | ????# %%% %%%% """ ?????????????????? | | ????# ????????????????? | | ????# ??????????????? | | ????# ###+#######???????????????? | | ????# *% #####+#### #?????????????????????????? | | ????# ! #?# ^ ## #?????????????????????????? | +----------------------------------------------------+ Best States ------------- Heat Dissipation 70 Energy Generation 27 Energy Capacity 460 Matter Stores 300 Matter Capacity 300 Sight Range 16 Terrain Scan Range 16 Terrain Scan Density 10 Jamming Range 12 Corruption Block 8 Armor Coverage 600 Resistance: TH 20 Core Shielding 20 Weapon Shielding 33 Evasion (%) 40 Targeting Accuracy 8 Target Analysis 6 Core Analysis 6 Recoil Reduction 4 Offensive Hacking 10 Defensive Hacking 10 Item Schematics ----------------- Katana | -9/Materials | Scanalyzed Rocket Launcher | -9/Materials | Scanalyzed Arm. Treads | -8/Materials | Scanalyzed Ripper | -8/Materials | Scanalyzed Adv. Beam Rifle | -8/Materials | Scanalyzed Hvy. Particle Gun | -8/Materials | Scanalyzed Robot Schematics ------------------ S-10 Pest | -10/Materials | Hacked G-34 Mercenary | -10/Materials | Hacked Fabricated ------------ Nothing Alien Tech Used ----------------- None Achievements -------------- Error 47 Hehehe Challenges ------------ None Game ------ Seed ThermoelectricKineticBarrier Manual? 0 Play Time 02:50:13 Cumulative 29.4 hours Start 2024.10.07 @ 19:02:31 End 2024.10.07 @ 23:46:49 Sessions 1 Manual Loads 0 Difficulty Rogue Special Mode None Game No. 20 Rogue 20 Adventurer 0 Explorer 0 Win Type - Total 1 Types 0/0/0/1/0/0/0/0/0 Lore% 32 Gallery% 57 Achievement% 77 Wizard Run 0 Options --------- Layout 0 ASCII 0 Keyboard 0 Movement Mouse Keybinds 0 Fullscreen 1 Font 24/Smallcaps Map View 113x50 Zoom Use 0% Tactical HUD 1 Map Filters NONE Filters NONE Steam 1 RUN: be8cc016-4477-4ab6-bc97-2753658532ee